lending/lending_fUSD_20241120
["ID","MTS","AMOUNT","RATE_DAILY","PERIOD"]
[342755633,1732111842937,-320433.68536029,0.0001,2]
[342755635,1732111842948,-56768.51374123,0.0001,2]
[342755637,1732111842960,-210246.55202002,0.0001,2]
[342755639,1732111842971,-345.25304648,0.0001,2]
[342755644,1732111845496,-3136.3558815,0.0001,2]
[342755645,1732111845509,-20384.1602,0.0001,2]
[342755646,1732111845620,-7742.76474329,0.0001,2]
[342755647,1732111845748,-38036.395,0.0001,2]
[342755648,1732111845760,-84089.97868,0.0001,2]
[342755649,1732111845771,-623383.32856713,0.0001,2]
[342755650,1732111845783,-8132.70034499,0.0001,2]
[342755651,1732111845795,-6380.0,0.0001,2]
[342755652,1732111845806,-996.81523776,0.0001,2]
[342756240,1732111997768,2000.0,0.00024974,120]
[342756241,1732112003362,500.0,0.00024986,120]
[342756242,1732112008999,200.0,0.00024974,120]
[342756243,1732112011668,156.12,0.00016658,30]
[342756245,1732112093937,1000.0,0.00021,30]
[342756246,1732112107145,895.64,8.219e-05,2]
[342756247,1732112212135,24545.0,9.999e-05,3]
[342756248,1732112601967,646.856767,0.000235,120]
[342756249,1732112605843,500.0,0.00025233,120]
[342756250,1732112612125,236.653409,0.000251,120]
[342756252,1732112798594,156.12,0.00016658,30]
[342756253,1732112826096,-564.3629628,9e-05,2]
[342756254,1732112826220,-2846.33687837,9e-05,2]
[342756255,1732112826242,-519.59,9.289e-05,2]
[342756256,1732112826266,-1416.73853907,9.336e-05,2]
[342756257,1732112827093,-493.79755245,9.336e-05,2]
[342756258,1732112827116,-3354.94696191,9.365e-05,2]
[342756260,1732112877991,875.0,0.000211,30]
[342756261,1732112904434,850.85,8.219e-05,2]
[342756292,1732113031799,-250.0,9.142e-05,2]
[342756293,1732113031809,-840.62,9.272e-05,2]
[342756294,1732113031819,-151.18,9.33e-05,2]
[342756295,1732113031828,-20545.05303809,9.365e-05,2]
[342756296,1732113031838,-250.0,9.42e-05,2]
[342756297,1732113031848,-1000.0,9.436e-05,2]
[342756298,1732113031857,-424.9,9.493e-05,2]
[342756299,1732113031867,-200.0,9.6e-05,2]
[342756300,1732113031876,-3614.2778,9.8e-05,2]
[342756301,1732113031886,-5183.1001,9.8e-05,2]
[342756302,1732113031896,-250.0,9.89e-05,2]
[342756303,1732113031905,-565.1159,9.9e-05,2]
[342756304,1732113031915,-947.71580063,9.9e-05,2]
[342756305,1732113031925,-171.9093426,9.991e-05,2]
[342756306,1732113031937,-406.1293492,9.992e-05,2]
[342756307,1732113031946,-1096.8474206,9.992e-05,2]
[342756308,1732113031956,-427.6546647,9.993e-05,2]
[342756309,1732113031965,-1154.981576,9.993e-05,2]
[342756310,1732113031975,-171.9093426,9.993e-05,2]
[342756311,1732113031985,-1225.29665468,9.998e-05,2]
[342756312,1732113031994,-150.0,9.998e-05,2]
[342756313,1732113032005,-773.04869949,9.999e-05,2]
[342756314,1732113032014,-1295.922,9.999e-05,2]
[342756315,1732113032024,-176.87676711,9.999e-05,2]
[342756316,1732113032034,-37927.46152777,9.999e-05,2]
[342756317,1732113032046,-192297.50693076,9.999e-05,2]
[342756318,1732113032058,-19775.03154147,9.999e-05,2]
[342756319,1732113032067,-60388.95558542,0.0001,2]
[342756320,1732113032090,-63019.68933568,0.0001,2]
[342756321,1732113032101,-2832.6,0.0001,2]
[342756322,1732113032141,-4857.500001,0.0001,2]
[342756323,1732113032152,-976.55251709,0.0001,2]
[342756696,1732113037698,-2230.6938654,0.0001,2]
[342756698,1732113037722,-566.090922,0.0001,2]
[342756699,1732113037734,-26751.237,0.0001,2]
[342756700,1732113037746,-5424.33083493,0.0001,2]
[342756701,1732113037835,-22007.1892137,0.0001,2]
[342756702,1732113037846,-7855.64757857,0.0001,2]
[342756703,1732113037857,-3664.5754271,0.0001,2]
[342756704,1732113037868,-547.6503144,0.0001,2]
[342756705,1732113037879,-1277.04253502,0.0001,2]
[342756706,1732113037898,-3555.12178743,0.0001,2]
[342756707,1732113037921,-31903.82050569,0.0001,2]
[342756708,1732113038059,-1648827.0570078,0.0001,2]
[342756709,1732113038071,-1886.8,0.0001,2]
[342756710,1732113038083,-303.97448345,0.0001,2]
[342756711,1732113038099,-17739752.84716684,0.0001,2]
[342756712,1732113038108,-1000.0,0.0001,2]
[342756713,1732113038118,-150.0,0.0001,2]
[342756714,1732113038129,-166.052,0.0001,2]
[342756715,1732113038140,-150.0,0.0001,2]
[342756716,1732113038150,-150.829,0.0001,2]
[342756717,1732113038159,-150.0,0.0001,2]
[342756718,1732113038169,-150.0,0.0001,2]
[342756719,1732113038178,-152.796,0.0001,2]
[342756720,1732113038194,-248.7,0.0001,2]
[342756721,1732113038203,-203.451,0.0001,2]
[342756722,1732113038213,-4948.55243684,0.0001,2]
[342756723,1732113038222,-4943.27560654,0.0001,2]
[342756724,1732113038231,-150.0,0.0001,2]
[342756725,1732113038240,-1994.0,0.0001,2]
[342756726,1732113038250,-560.0,0.0001,2]
[342756727,1732113038259,-1000.0,0.0001,2]
[342756728,1732113038268,-1926.0,0.0001,2]
[342756729,1732113038277,-815.0,0.0001,2]
[342756730,1732113038286,-3747.0,0.0001,2]
[342756731,1732113038295,-1260.0,0.0001,2]
[342756732,1732113038304,-920.0,0.0001,2]
[342756733,1732113038313,-3514.0,0.0001,2]
[342756735,1732113038322,-191.35474027,0.0001,2]
[342756737,1732113038332,-1000.0,0.0001,2]
[342756739,1732113038341,-692.66255707,0.0001,2]
[342756741,1732113038350,-3000.0,0.0001,2]
[342756743,1732113038359,-342.1218151,0.0001,2]
[342756745,1732113038368,-1000.97730006,0.0001,2]
[342756746,1732113038377,-5211.94198559,0.0001,2]
[342756747,1732113038386,-23296971.72171289,0.0001,2]
[342756748,1732113038398,-3998374.24,0.0001,2]
[342756753,1732113040215,-1398.01581942,0.0001,2]
[342756754,1732113040227,-482.39500008,0.0001,2]
[342756755,1732113040238,-455.280016,0.0001,2]
[342756756,1732113040250,-494.175,0.0001,2]
[342756757,1732113040288,-325.0967656,0.0001,2]
[342756758,1732113040308,-8006.2465728,0.0001,2]
[342756759,1732113040319,-4756.99459663,0.0001,2]
[342756760,1732113040339,-617.80000001,0.0001,2]
[342756761,1732113040352,-2523.34036,0.0001,2]
[342756764,1732113042705,-3521.13744267,0.0001,2]
[342756765,1732113042716,-19888.67009788,0.0001,2]
[342756766,1732113042727,-28374.53830623,0.0001,2]
[342756767,1732113042738,-9436.64926988,0.0001,2]
[342756768,1732113042783,-7537.5174469,0.0001,2]
[342756769,1732113042794,-15753.88401264,0.0001,2]
[342756770,1732113042810,-707.0185122,0.0001,2]
[342756771,1732113042821,-21206.2358987,0.0001,2]
[342756772,1732113042836,-522568.41033517,0.0001,2]
[342756773,1732113042847,-2850.08412549,0.0001,2]
[342756774,1732113042858,-6805.91707339,0.0001,2]
[342756775,1732113042869,-9446.1,0.0001,2]
[342756776,1732113042884,-225234.75502666,0.0001,2]
[342756777,1732113042899,-735.915,0.0001,2]
[342756778,1732113042986,-9385.93373563,0.0001,2]
[342756796,1732113045733,-352.2684492,0.0001,2]
[342756797,1732113045763,-18927.57960001,0.0001,2]
[342756798,1732113045880,-534.8,0.0001,2]
[342756799,1732113045891,-1883.12097548,0.0001,2]
[342756800,1732113045903,-1566.99999997,0.0001,2]
[342756801,1732113045914,-432.89382276,0.0001,2]
[342756802,1732113045924,-1290.64592822,0.0001,2]
[342756803,1732113045935,-4297.7,0.0001,2]
[342756806,1732113197017,502.913921,0.0002515,120]
[342756807,1732113206081,2000.0,0.0002515,120]
[342756808,1732113209140,500.0,0.0002355,120]
[342756809,1732113213710,500.0,0.00025283,120]
[342756810,1732113218638,163.346591,0.0002515,120]
[342756811,1732113269703,250.0,0.00026,120]
[342756812,1732113279373,150.0,0.0001,3]
[342756813,1732113289246,250.0,0.00026,120]
[342756814,1732113599308,1121.03,8.219e-05,2]
[342756816,1732113696567,156.12,0.00016658,30]
[342756817,1732113797334,1853.509096,0.00026,120]
[342756818,1732113800318,297.37192295,0.00026,60]
[342756819,1732113802583,500.0,0.00026,120]
[342756821,1732113846939,1000.0,0.000211,30]
[342756822,1732114029713,-164.59,8.6e-05,2]
[342756823,1732114029734,-632.06315361,8.85e-05,2]
[342756824,1732114040201,-711.27,8.554e-05,2]
[342756825,1732114040223,-2367.93684639,8.85e-05,2]
[342756826,1732114040246,-466.10411462,8.851e-05,2]
[342756827,1732114044110,-533.89588538,8.851e-05,2]
[342756828,1732114044132,-250.0,8.876e-05,2]
[342756829,1732114044153,-500.0,8.882e-05,2]
[342756830,1732114044180,-300.0,8.968e-05,2]
[342756831,1732114044202,-300.0,8.968e-05,2]
[342756832,1732114044225,-3770.77662048,8.969e-05,2]
[342756836,1732114162103,-250.0,8.666e-05,2]
[342756837,1732114162123,-250.0,8.667e-05,2]
[342756838,1732114162143,-721.1,8.716e-05,2]
[342756839,1732114162162,-600.0,8.757e-05,2]
[342756840,1732114162183,-10444.02368662,8.969e-05,2]
[342756841,1732114162218,-2587.0796929,8.969e-05,2]
[342756842,1732114162238,-150.0,9e-05,2]
[342756845,1732114181584,-623.92,9.044e-05,2]
[342756846,1732114181607,-616.17,9.064e-05,2]
[342756847,1732114181630,-150.0,9.068e-05,2]
[342756848,1732114181652,-165.66,9.107e-05,2]
[342756849,1732114181675,-167.38,9.116e-05,2]
[342756850,1732114181701,-165.66,9.117e-05,2]
[342756851,1732114181728,-165.66,9.126e-05,2]
[342756852,1732114181750,-165.66,9.135e-05,2]
[342756853,1732114181773,-165.66,9.144e-05,2]
[342756854,1732114181806,-165.66,9.153e-05,2]
[342756855,1732114181828,-278.9,9.335e-05,2]
[342756856,1732114181849,-150.0,9.525e-05,2]
[342756857,1732114181871,-167.38,9.618e-05,2]
[342756858,1732114181892,-8228.299,9.799e-05,2]
[342756859,1732114181913,-2962.4363,9.799e-05,2]
[342756860,1732114181938,-721.1,9.805e-05,2]
[342756861,1732114181959,-250.0,9.89e-05,2]
[342756862,1732114181980,-150.0,9.898e-05,2]
[342756863,1732114182002,-156709.9410997,9.899e-05,2]
[342756875,1732114235643,-300.0,9.898e-05,2]
[342756876,1732114235654,-126274.4507003,9.899e-05,2]
[342756877,1732114235663,-24695.6893,9.899e-05,2]
[342756878,1732114235673,-191.35474027,9.899e-05,2]
[342756879,1732114235682,-150.0,9.942e-05,2]
[342756880,1732114235692,-1000.0,9.957e-05,2]
[342756881,1732114235701,-437.110378,9.991e-05,2]
[342756882,1732114235710,-918.484602,9.991e-05,2]
[342756883,1732114235719,-503.9639752,9.993e-05,2]
[342756884,1732114235729,-1058.9617051,9.993e-05,2]
[342756885,1732114235739,-1036.737,9.998e-05,2]
[342756886,1732114235749,-1000.0,9.999e-05,2]
[342756887,1732114235758,-250000.0,9.999e-05,2]
[342756888,1732114235768,-100000.0,9.999e-05,2]
[342756889,1732114235778,-30159.12350088,9.999e-05,2]
[342756890,1732114235787,-650.0,0.0001,2]
[342756891,1732114235797,-168.70255176,0.0001,2]
[342756892,1732114235811,-168.70255173,0.0001,2]
[342756893,1732114235824,-168.70255173,0.0001,2]
[342756894,1732114235837,-168.70255173,0.0001,2]
[342756895,1732114235850,-760345.19039957,0.0001,2]
[342756896,1732114235870,-283285.62623107,0.0001,2]
[342756897,1732114235882,-188178.0,0.0001,2]
[342756898,1732114235894,-470652.98793367,0.0001,2]
[342756899,1732114235905,-504.6630174,0.0001,2]
[342756900,1732114235920,-47706.01857168,0.0001,2]
[342756901,1732114235944,-325.2239998,0.0001,2]
[342756902,1732114235981,-28919.35568535,0.0001,2]
[342756906,1732114238530,-31649888.86273547,0.0001,2]
[342756907,1732114238540,-4948.55243684,0.0001,2]
[342756908,1732114238550,-4943.27560654,0.0001,2]
[342756909,1732114238559,-1000.0,0.0001,2]
[342756910,1732114238569,-564.0,0.0001,2]
[342756911,1732114238582,-1256.0,0.0001,2]
[342756912,1732114238591,-1994.0,0.0001,2]
[342756913,1732114238600,-279.759,0.0001,2]
[342756914,1732114238610,-629.682,0.0001,2]
[342756915,1732114238625,-1926.0,0.0001,2]
[342756916,1732114238635,-3747.0,0.0001,2]
[342756917,1732114238645,-1263.772,0.0001,2]
[342756918,1732114238656,-920.918,0.0001,2]
[342756919,1732114238666,-815.0,0.0001,2]
[342756920,1732114238675,-3514.0,0.0001,2]
[342756921,1732114238685,-342.1218151,0.0001,2]
[342756922,1732114238694,-1000.97730006,0.0001,2]
[342756923,1732114238708,-168.70255173,0.0001,2]
[342756925,1732114238717,-150.0,0.0001,2]
[342756927,1732114238727,-13654.0,0.0001,2]
[342756929,1732114238736,-3000.0,0.0001,2]
[342756931,1732114238746,-1837.0199934,0.0001,2]
[342756933,1732114238755,-1161.0,0.0001,2]
[342756934,1732114238765,-5939.0,0.0001,2]
[342756935,1732114238774,-3931.76908395,0.0001,2]
[342756936,1732114238783,-160.957,0.0001,2]
[342756937,1732114238793,-150.829,0.0001,2]
[342756938,1732114238802,-105817.4272857,0.0001,2]
[342756939,1732114238811,-150.0,0.0001,2]
[342756940,1732114238820,-2171.0,0.00010082,2]
[342756941,1732114238833,-7959.0,0.00010084,2]
[342756942,1732114238842,-167.38,0.00010119,2]
[342756943,1732114238851,-421.93189667,0.00010344,2]
[342756944,1732114238860,-1710.0,0.00010411,2]
[342756945,1732114238870,-1121.03,0.0001042,2]
[342756946,1732114238879,-278.9,0.00010502,2]
[342756947,1732114238888,-168.54,0.0001053,2]
[342756948,1732114238897,-167.38,0.00010621,2]
[342756949,1732114238907,-421.93189667,0.00010663,2]
[342756950,1732114238916,-421.93189667,0.00010685,2]
[342756951,1732114238926,-255.0,0.00010888,2]
[342756952,1732114238935,-420.0,0.00010888,2]
[342756953,1732114238946,-721.1,0.00010895,2]
[342756954,1732114238956,-1346.50772407,0.000109,2]
[342756955,1732114238965,-1346.50772406,0.000109,2]
[342756956,1732114238974,-1346.50772406,0.000109,2]
[342756957,1732114238984,-1346.50772406,0.000109,2]
[342756958,1732114238993,-1346.50772406,0.000109,2]
[342756959,1732114239003,-1346.50772406,0.000109,2]
[342756960,1732114239014,-1346.50772406,0.000109,2]
[342756961,1732114239023,-1346.50772406,0.000109,2]
[342756962,1732114239033,-538.96416155,0.00010958,2]
[342756963,1732114239044,-347.76011799,0.00010958,2]
[342756964,1732114239054,-500.0,0.00010958,2]
[342756965,1732114239063,-500.0,0.00010958,2]
[342756966,1732114239073,-500.0,0.00010958,2]
[342756967,1732114239085,-500.0,0.00010958,2]
[342756968,1732114239095,-738.42978435,0.00010958,2]
[342756969,1732114239104,-500.0,0.00010958,2]
[342756970,1732114239114,-738.42978435,0.00010958,2]
[342756971,1732114239123,-500.0,0.00010958,2]
[342756972,1732114239133,-349.49092041,0.00010958,2]
[342756973,1732114239142,-397.10785319,0.00010958,2]
[342756974,1732114239151,-738.42978435,0.00010958,2]
[342756975,1732114239161,-500.0,0.00010958,2]
[342756976,1732114239170,-738.42978435,0.00010958,2]
[342756977,1732114239179,-500.0,0.00010958,2]
[342756978,1732114239189,-500.0,0.00010958,2]
[342756979,1732114239198,-738.42978435,0.00010958,2]
[342756980,1732114239207,-500.0,0.00010958,2]
[342756981,1732114239217,-738.42978435,0.00010958,2]
[342756982,1732114239226,-500.0,0.00010958,2]
[342756983,1732114239235,-738.42978435,0.00010958,2]
[342756984,1732114239245,-500.0,0.00010958,2]
[342756985,1732114239254,-738.42978435,0.00010958,2]
[342756986,1732114239264,-738.42978435,0.00010958,2]
[342756987,1732114239273,-500.0,0.00010958,2]
[342756988,1732114239282,-738.42978435,0.00010958,2]
[342756989,1732114239291,-500.0,0.00010958,2]
[342756990,1732114239301,-738.42978435,0.00010958,2]
[342756991,1732114239311,-500.0,0.00010958,2]
[342756992,1732114239320,-738.42978435,0.00010958,2]
[342756993,1732114239330,-500.0,0.00010958,2]
[342756994,1732114239340,-738.42978435,0.00010958,2]
[342756995,1732114239349,-500.0,0.00010958,2]
[342756996,1732114239358,-500.0,0.00010958,2]
[342756997,1732114239367,-738.42978435,0.00010958,2]
[342756998,1732114239376,-738.42978435,0.00010958,2]
[342756999,1732114239385,-500.0,0.00010958,2]
[342757000,1732114239395,-738.42978435,0.00010958,2]
[342757001,1732114239404,-500.0,0.00010958,2]
[342757002,1732114239413,-738.42978435,0.00010958,2]
[342757003,1732114239423,-500.0,0.00010958,2]
[342757004,1732114239432,-738.42978435,0.00010958,2]
[342757005,1732114239441,-500.0,0.00010958,2]
[342757006,1732114239451,-738.42978435,0.00010958,2]
[342757007,1732114239460,-500.0,0.00010958,2]
[342757008,1732114239470,-738.42978435,0.00010958,2]
[342757009,1732114239480,-500.0,0.00010958,2]
[342757010,1732114239490,-738.42978435,0.00010958,2]
[342757011,1732114239499,-500.0,0.00010958,2]
[342757012,1732114239509,-738.42978435,0.00010958,2]
[342757013,1732114239518,-500.0,0.00010958,2]
[342757014,1732114239528,-738.42978435,0.00010958,2]
[342757015,1732114239537,-500.0,0.00010958,2]
[342757016,1732114239547,-738.42978435,0.00010958,2]
[342757017,1732114239556,-500.0,0.00010958,2]
[342757018,1732114239566,-738.42978435,0.00010958,2]
[342757019,1732114239575,-738.42978435,0.00010958,2]
[342757020,1732114239586,-738.42978435,0.00010958,2]
[342757021,1732114239597,-500.0,0.00010958,2]
[342757022,1732114239607,-500.0,0.00010958,2]
[342757023,1732114239616,-738.42978435,0.00010958,2]
[342757024,1732114239626,-500.0,0.00010958,2]
[342757025,1732114239635,-738.42978435,0.00010958,2]
[342757026,1732114239645,-500.0,0.00010958,2]
[342757027,1732114239655,-500.0,0.00010958,2]
[342757028,1732114239665,-738.42978435,0.00010958,2]
[342757029,1732114239674,-500.0,0.00010958,2]
[342757030,1732114239684,-738.42978435,0.00010958,2]
[342757031,1732114239694,-500.0,0.00010958,2]
[342757032,1732114239704,-500.0,0.00010958,2]
[342757033,1732114239713,-738.42978435,0.00010958,2]
[342757034,1732114239723,-738.42978435,0.00010958,2]
[342757035,1732114239733,-500.0,0.00010958,2]
[342757036,1732114239742,-432.58170006,0.00010958,2]
[342757037,1732114239752,-738.42978435,0.00010958,2]
[342757038,1732114239762,-738.42978435,0.00010958,2]
[342757039,1732114239772,-738.42978435,0.00010958,2]
[342757040,1732114239782,-500.0,0.00010958,2]
[342757041,1732114239791,-738.42978435,0.00010958,2]
[342757042,1732114239801,-500.0,0.00010958,2]
[342757043,1732114239810,-738.42978435,0.00010958,2]
[342757045,1732114239819,-738.42978435,0.00010958,2]
[342757047,1732114239832,-500.0,0.00010958,2]
[342757048,1732114239842,-738.42978435,0.00010958,2]
[342757049,1732114239851,-738.42978435,0.00010958,2]
[342757050,1732114239861,-738.42978435,0.00010958,2]
[342757051,1732114239870,-738.42978435,0.00010958,2]
[342757052,1732114239880,-738.42978435,0.00010958,2]
[342757053,1732114239891,-738.42978435,0.00010958,2]
[342757054,1732114239900,-738.42978435,0.00010958,2]
[342757055,1732114239910,-738.42978435,0.00010958,2]
[342757056,1732114239919,-738.42978435,0.00010958,2]
[342757057,1732114239929,-738.42978435,0.00010958,2]
[342757058,1732114239942,-738.42978435,0.00010958,2]
[342757059,1732114239952,-738.42978435,0.00010958,2]
[342757060,1732114239962,-738.42978435,0.00010958,2]
[342757061,1732114239971,-738.42978435,0.00010958,2]
[342757062,1732114239981,-738.42978435,0.00010958,2]
[342757063,1732114239990,-738.42978435,0.00010958,2]
[342757064,1732114239999,-738.42978435,0.00010958,2]
[342757065,1732114240009,-738.42978435,0.00010958,2]
[342757066,1732114240018,-500.0,0.00010958,2]
[342757067,1732114240028,-500.0,0.00010958,2]
[342757068,1732114240037,-500.0,0.00010958,2]
[342757069,1732114240046,-500.0,0.00010958,2]
[342757070,1732114240055,-2936.87551824,0.00010958,2]
[342757071,1732114240065,-500.0,0.00010958,2]
[342757072,1732114240074,-2936.87551824,0.00010958,2]
[342757073,1732114240085,-500.0,0.00010958,2]
[342757074,1732114240094,-500.0,0.00010958,2]
[342757075,1732114240104,-2936.87551824,0.00010958,2]
[342757076,1732114240113,-2936.87551824,0.00010958,2]
[342757077,1732114240123,-500.0,0.00010958,2]
[342757079,1732114240132,-500.0,0.00010958,2]
[342757081,1732114240142,-2936.87551824,0.00010958,2]
[342757083,1732114240152,-161.49707667,0.00010958,2]
[342757085,1732114240165,-500.0,0.00010958,2]
[342757087,1732114240178,-2936.87551824,0.00010958,2]
[342757088,1732114240189,-500.0,0.00010958,2]
[342757089,1732114240199,-2936.87551824,0.00010958,2]
[342757090,1732114240209,-252.6096929,0.00010958,2]
[342757091,1732114240218,-2936.87551824,0.00010958,2]
[342757092,1732114240229,-500.0,0.00010958,2]
[342757093,1732114240238,-2936.87551824,0.00010958,2]
[342757094,1732114240247,-500.0,0.00010958,2]
[342757095,1732114240257,-2936.87551824,0.00010958,2]
[342757096,1732114240266,-500.0,0.00010958,2]
[342757097,1732114240275,-2936.87551824,0.00010958,2]
[342757098,1732114240285,-500.0,0.00010958,2]
[342757099,1732114240294,-2936.87551824,0.00010958,2]
[342757100,1732114240304,-500.0,0.00010958,2]
[342757101,1732114240313,-500.0,0.00010958,2]
[342757102,1732114240323,-2936.87551824,0.00010958,2]
[342757103,1732114240335,-500.0,0.00010958,2]
[342757104,1732114240345,-500.0,0.00010958,2]
[342757105,1732114240355,-2936.87551824,0.00010958,2]
[342757106,1732114240364,-500.0,0.00010958,2]
[342757107,1732114240373,-2936.87551824,0.00010958,2]
[342757108,1732114240383,-500.0,0.00010958,2]
[342757109,1732114240392,-500.0,0.00010958,2]
[342757110,1732114240402,-2936.87551824,0.00010958,2]
[342757111,1732114240411,-500.0,0.00010958,2]
[342757112,1732114240421,-2936.87551824,0.00010958,2]
[342757113,1732114240430,-2936.87551824,0.00010958,2]
[342757114,1732114240439,-500.0,0.00010958,2]
[342757115,1732114240449,-500.0,0.00010958,2]
[342757116,1732114240459,-2936.87551824,0.00010958,2]
[342757117,1732114240469,-500.0,0.00010958,2]
[342757118,1732114240479,-2936.87551824,0.00010958,2]
[342757119,1732114240488,-500.0,0.00010958,2]
[342757120,1732114240498,-2936.87551824,0.00010958,2]
[342757121,1732114240508,-500.0,0.00010958,2]
[342757122,1732114240518,-2936.87551824,0.00010958,2]
[342757123,1732114240527,-2936.87551824,0.00010958,2]
[342757124,1732114240537,-500.0,0.00010958,2]
[342757125,1732114240547,-2936.87551824,0.00010958,2]
[342757126,1732114240557,-2936.87551824,0.00010958,2]
[342757127,1732114240567,-175.40416606,0.00010958,2]
[342757128,1732114240579,-2936.87551824,0.00010958,2]
[342757129,1732114240589,-2936.87551824,0.00010958,2]
[342757130,1732114240599,-2936.87551824,0.00010958,2]
[342757131,1732114240608,-2936.87551824,0.00010958,2]
[342757132,1732114240618,-2936.87551824,0.00010958,2]
[342757133,1732114240628,-2936.87551824,0.00010958,2]
[342757134,1732114240637,-2936.87551824,0.00010958,2]
[342757135,1732114240647,-2936.87551824,0.00010958,2]
[342757136,1732114240657,-2936.87551824,0.00010958,2]
[342757137,1732114240667,-500.0,0.00010958,2]
[342757138,1732114240677,-2936.87551824,0.00010958,2]
[342757139,1732114240687,-2936.87551824,0.00010958,2]
[342757140,1732114240697,-2936.87551824,0.00010958,2]
[342757141,1732114240707,-2936.87551824,0.00010958,2]
[342757142,1732114240716,-2936.87551824,0.00010958,2]
[342757143,1732114240727,-2936.87551824,0.00010958,2]
[342757144,1732114240737,-2936.87551824,0.00010958,2]
[342757145,1732114240747,-2936.87551824,0.00010958,2]
[342757146,1732114240756,-2936.87551824,0.00010958,2]
[342757147,1732114240766,-2936.87551824,0.00010958,2]
[342757148,1732114240776,-2936.87551824,0.00010958,2]
[342757149,1732114240785,-2936.87551824,0.00010958,2]
[342757150,1732114240795,-2936.87551824,0.00010958,2]
[342757151,1732114240804,-2936.87551824,0.00010958,2]
[342757152,1732114240815,-2936.87551824,0.00010958,2]
[342757153,1732114241145,-2936.87551824,0.00010958,2]
[342757154,1732114241220,-2936.87551824,0.00010958,2]
[342757155,1732114241229,-2936.87551824,0.00010958,2]
[342757156,1732114241239,-2936.87551824,0.00010958,2]
[342757157,1732114241248,-2936.87551824,0.00010958,2]
[342757158,1732114241258,-2936.87551825,0.00010958,2]
[342757159,1732114241266,-2936.87551824,0.00010958,2]
[342757160,1732114241277,-2936.87551824,0.00010958,2]
[342757161,1732114241288,-500.0,0.00010958,2]
[342757162,1732114241297,-500.0,0.00010958,2]
[342757163,1732114241310,-500.0,0.00010958,2]
[342757164,1732114241319,-2376.38494245,0.00010958,2]
[342757165,1732114241337,-500.0,0.00010958,2]
[342757166,1732114241346,-2376.38494245,0.00010958,2]
[342757167,1732114241355,-500.0,0.00010958,2]
[342757168,1732114241364,-2376.38494245,0.00010958,2]
[342757169,1732114241373,-500.0,0.00010958,2]
[342757170,1732114241383,-2376.38494245,0.00010958,2]
[342757171,1732114241392,-500.0,0.00010958,2]
[342757172,1732114241402,-2376.38494245,0.00010958,2]
[342757173,1732114241412,-500.0,0.00010958,2]
[342757174,1732114241421,-2376.38494245,0.00010958,2]
[342757175,1732114241431,-293.23530052,0.00010958,2]
[342757176,1732114241440,-2376.38494245,0.00010958,2]
[342757177,1732114241450,-500.0,0.00010958,2]
[342757178,1732114241461,-2376.38494245,0.00010958,2]
[342757179,1732114241471,-2376.38494245,0.00010958,2]
[342757180,1732114241480,-500.0,0.00010958,2]
[342757181,1732114241490,-2376.38494245,0.00010958,2]
[342757182,1732114241499,-2376.38494245,0.00010958,2]
[342757183,1732114241509,-2376.38494245,0.00010958,2]
[342757184,1732114241518,-2376.38494245,0.00010958,2]
[342757185,1732114241528,-500.0,0.00010958,2]
[342757186,1732114241537,-2376.38494245,0.00010958,2]
[342757187,1732114241547,-500.0,0.00010958,2]
[342757188,1732114241555,-2376.38494245,0.00010958,2]
[342757189,1732114241565,-500.0,0.00010958,2]
[342757190,1732114241574,-2376.38494245,0.00010958,2]
[342757191,1732114241589,-500.0,0.00010958,2]
[342757192,1732114241598,-2376.38494245,0.00010958,2]
[342757193,1732114241608,-500.0,0.00010958,2]
[342757194,1732114241617,-2376.38494245,0.00010958,2]
[342757195,1732114241627,-500.0,0.00010958,2]
[342757196,1732114241637,-2376.38494245,0.00010958,2]